bitfinex/quotes_BTCUSD_20260125
["timestamp","ask_amount","ask_price","bid_price","bid_amount"]
[1769382987573,0.22914484,86228.0,86213.0,0.01159917]
[1769382988252,0.22914484,86228.0,86214.0,0.01159904]
[1769382989486,0.22914484,86228.0,86213.0,0.01159917]
[1769382989689,0.22914484,86228.0,86212.0,1.13049546]
[1769382989889,0.22914484,86228.0,86211.0,0.25537519]
[1769382990097,0.22914484,86228.0,86212.0,0.01159931]
[1769382990573,0.22914484,86228.0,86211.0,0.25537519]
[1769382991001,0.240742,86228.0,86211.0,0.24377575]
[1769382991216,0.240742,86228.0,86212.0,0.01159931]
[1769382991217,0.22914484,86228.0,86212.0,0.01159931]
[1769382991433,0.22914484,86228.0,86213.0,1.13049546]
[1769382992284,0.22914484,86228.0,86212.0,0.01159931]
[1769382992493,0.22914484,86228.0,86213.0,0.01159917]
[1769382992695,0.0001413,86229.0,86212.0,0.01159931]
[1769382992905,0.0001413,86229.0,86212.0,0.25537506]
[1769382993168,0.0001413,86229.0,86212.0,1.38587052]
[1769382993382,0.0001413,86229.0,86213.0,0.01159917]
[1769382993672,0.0001413,86229.0,86212.0,1.38587052]
[1769382993811,0.0001413,86229.0,86213.0,0.01159917]
[1769382994007,0.01159716,86228.0,86212.0,0.24377575]
[1769382994215,0.24751235,86229.0,86212.0,0.24377575]
[1769382994624,0.23577403,86228.0,86203.0,0.05800052]
[1769382994825,0.0001413,86229.0,86203.0,0.05800052]
[1769382994826,0.23577403,86225.0,86206.0,0.01160012]
[1769382995052,0.23577403,86225.0,86207.0,0.01159998]
[1769382995248,0.0001413,86229.0,86212.0,1.05596589]
[1769382995448,0.0001413,86229.0,86211.0,0.01159944]
[1769382995449,0.0001413,86229.0,86216.0,0.01159877]
[1769382995651,0.0001413,86229.0,86218.0,1.05596589]
[1769382995838,0.0001413,86229.0,86219.0,0.01159837]
[1769382996037,0.0001413,86229.0,86219.0,1.05596589]
[1769382996283,0.0001413,86229.0,86217.0,0.06959182]
[1769382996284,0.0001413,86229.0,86221.0,1.05596589]
[1769382996482,0.0001413,86229.0,86224.0,0.01159769]
[1769382996680,0.0001413,86229.0,86225.0,1.05596589]
[1769382997054,0.0001413,86229.0,86224.0,0.2425984]
[1769382997490,0.0001413,86229.0,86224.0,1.29856429]
[1769382997667,0.0001413,86229.0,86219.0,1.31016266]
[1769382998239,0.0001413,86229.0,86221.0,0.0115981]
[1769382998794,0.0001413,86229.0,86222.0,0.01159796]
[1769382999497,0.23189073,86248.0,86222.0,0.01159796]
[1769382999498,0.24736903,86244.0,86229.0,0.0001413]
[1769382999701,0.24736903,86244.0,86221.0,0.0115981]
[1769382999702,0.04604518,86257.0,86244.0,0.0098587]
[1769382999942,0.0004724,86257.0,86246.0,1.0529175]
[1769383000117,0.0004724,86257.0,86254.0,0.01159366]
[1769383000279,0.0004724,86257.0,86254.0,1.06755955]
[1769383000485,0.06954264,86278.0,86245.0,0.2967584]
[1769383000486,0.23577403,86280.0,86265.0,0.01159218]
[1769383000730,0.23588906,86280.0,86262.0,1.05596589]
[1769383000939,0.23588906,86280.0,86262.0,0.01159259]
[1769383000940,1.40145391,86280.0,86262.0,0.01159259]
[1769383001148,1.16556485,86279.0,86263.0,0.2425984]
[1769383001355,1.16556485,86279.0,86260.0,1.05596589]
[1769383001356,0.23577403,86278.0,86260.0,1.05596589]
[1769383001593,0.23577403,86276.0,86260.0,1.05596589]
[1769383001751,0.23577403,86276.0,86259.0,0.17816]
[1769383001752,0.01159084,86275.0,86259.0,0.17816]
[1769383001956,0.01159084,86275.0,86255.0,0.17812]
[1769383001957,0.23577403,86270.0,86255.0,0.17812]
[1769383002171,1.16556485,86269.0,86255.0,0.17812]
[1769383003155,1.16556485,86269.0,86255.0,0.18971353]
[1769383003509,1.16556485,86269.0,86255.0,0.17812]
[1769383003719,0.23577403,86268.0,86255.0,0.17812]
[1769383004547,0.23577403,86268.0,86251.0,0.2425984]
[1769383004548,1.17715676,86267.0,86252.0,0.17812]
[1769383004747,1.16556485,86267.0,86252.0,0.17812]
[1769383004922,0.23577403,86268.0,86252.0,0.17812]
[1769383005130,0.24736433,86279.0,86252.0,0.17812]
[1769383005311,0.23577403,86279.0,86261.0,0.25419112]
[1769383005510,0.23577403,86279.0,86263.0,1.06755834]
[1769383005733,0.23577403,86279.0,86264.0,1.06755821]
[1769383006241,1.16567988,86280.0,86262.0,0.06955542]
[1769383006242,0.00011503,86280.0,86265.0,0.2425984]
[1769383006447,0.23577403,86291.0,86238.0,0.0384]
[1769383006448,0.01158815,86295.0,86273.0,0.2425984]
[1769383006670,0.01158815,86295.0,86272.0,0.0579562]
[1769383006671,0.01158815,86295.0,86276.0,1.29856429]
[1769383006882,0.23577403,86295.0,86276.0,1.29856429]
[1769383007241,0.24736218,86295.0,86276.0,1.29856429]
[1769383007831,0.24736218,86295.0,86276.0,1.31015499]
[1769383008034,0.06995012,86298.0,86272.0,0.17812]
[1769383008035,0.0004223,86298.0,86283.0,0.2425984]
[1769383008296,0.0004223,86298.0,86289.0,0.2425984]
[1769383008792,0.0004223,86298.0,86285.0,1.05596589]
[1769383008991,0.0004223,86298.0,86285.0,1.29856429]
[1769383009433,0.0004223,86298.0,86285.0,0.2425984]
[1769383009590,0.0004223,86298.0,86285.0,1.29856429]
[1769383009762,0.0004223,86298.0,86285.0,0.2425984]
[1769383011365,0.05836144,86298.0,86285.0,0.2425984]
[1769383011586,0.01158788,86297.0,86277.0,1.05596589]
[1769383011789,0.01158815,86295.0,86280.0,0.2425984]
[1769383011993,0.01158815,86295.0,86282.0,0.2425984]
[1769383012194,0.01158815,86295.0,86275.0,0.01159084]
[1769383012420,0.83492172,86290.0,86275.0,0.17808]
[1769383012664,0.24736326,86287.0,86275.0,0.17808]
[1769383012869,0.01158949,86285.0,86267.0,0.2425984]
[1769383013070,0.01158882,86290.0,86267.0,0.00011503]
[1769383013071,1.16556485,86275.0,86267.0,0.00011503]
[1769383013310,0.8233329,86274.0,86267.0,0.00011503]
[1769383013471,0.8233329,86271.0,86267.0,0.00011503]
[1769383013676,0.8233329,86270.0,86267.0,0.00011503]
[1769383014092,0.24736433,86279.0,86270.0,0.01]
[1769383014390,0.83492347,86277.0,86267.0,0.00011503]
[1769383014552,0.0115907,86276.0,86267.0,0.00011503]
[1769383014747,1.05910693,86277.0,86267.0,0.00011503]
[1769383015675,0.8233329,86273.0,86267.0,0.00011503]
[1769383016058,0.0115907,86276.0,86267.0,0.00011503]
[1769383016243,0.01159097,86274.0,86267.0,0.00011503]
[1769383018508,0.01159111,86273.0,86267.0,0.00011503]
[1769383018729,0.4401278,86280.0,86255.0,0.17808]
[1769383018940,0.83481161,86262.0,86255.0,0.17808]
[1769383019264,0.01159138,86271.0,86262.0,0.01]
[1769383019414,0.01159151,86270.0,86262.0,0.01]
[1769383019634,0.01159138,86271.0,86262.0,0.01]
[1769383020224,0.8348104,86271.0,86262.0,0.01]
[1769383020970,0.82321902,86271.0,86262.0,0.01]
[1769383021614,0.01159084,86275.0,86263.0,1.05596589]
[1769383021810,0.0115907,86276.0,86263.0,1.05596589]
[1769383022050,0.01159057,86277.0,86263.0,1.05596589]
[1769383022264,0.06447412,86302.0,86255.0,0.18967353]
[1769383022265,0.01159191,86267.0,86255.0,0.17808]
[1769383022483,0.82321902,86266.0,86255.0,0.17808]
[1769383022684,0.83481161,86262.0,86255.0,0.17808]
[1769383022837,0.82321902,86262.0,86255.0,0.17808]
[1769383023444,0.24736594,86267.0,86255.0,0.17808]
[1769383023445,0.23577403,86267.0,86255.0,0.17808]
[1769383023655,0.24736594,86267.0,86255.0,0.17808]
[1769383023864,0.16648504,86267.0,86255.0,0.17808]
[1769383024071,0.01159151,86270.0,86255.0,1.47641966]
[1769383024269,0.01159151,86270.0,86256.0,0.23869051]
[1769383024474,0.30437267,86275.0,86256.0,0.23869051]
[1769383024475,0.0115907,86276.0,86258.0,0.23869051]
[1769383024705,0.01173173,86280.0,86260.0,0.25028336]
[1769383024905,0.01173173,86280.0,86262.0,1.29833966]
[1769383025120,0.00014156,86280.0,86262.0,1.29833966]
[1769383025287,0.01159057,86277.0,86262.0,0.23869051]
[1769383025512,0.0115903,86279.0,86262.0,0.23869051]
[1769383025715,0.23496889,86280.0,86262.0,1.29833966]
[1769383025948,0.0115903,86279.0,86262.0,1.29833966]
[1769383026279,0.90626421,86280.0,86263.0,0.23869051]
[1769383026689,0.01159044,86278.0,86263.0,0.23869051]
[1769383026903,0.01159044,86278.0,86262.0,1.01301321]
[1769383027110,0.00602766,86327.0,86252.0,0.01159393]
[1769383027111,0.8693886,86270.0,86252.0,0.23869051]
[1769383027336,0.23482733,86273.0,86256.0,1.30993305]
[1769383027548,0.23482733,86273.0,86256.0,1.29833966]
[1769383027967,0.23482733,86273.0,86256.0,1.30993305]
[1769383028175,0.23482733,86273.0,86256.0,1.29833966]
[1769383028612,1.10421593,86273.0,86256.0,1.30993305]
[1769383028822,1.10421593,86273.0,86256.0,1.29833966]
[1769383029040,1.10421593,86273.0,86256.0,1.30993305]
[1769383029253,0.88097984,86272.0,86256.0,1.29833966]
[1769383029454,0.8693886,86272.0,86256.0,1.29833966]
[1769383029992,0.8693886,86272.0,86256.0,1.30993305]
[1769383030216,0.8693886,86272.0,86256.0,1.29833966]
[1769383030873,0.01159138,86271.0,86256.0,0.23869051]
[1769383031093,0.8693886,86266.0,86255.0,0.17822156]
[1769383031229,0.23482733,86267.0,86255.0,0.17822156]
[1769383031428,0.01159151,86270.0,86255.0,0.17822156]
[1769383031720,1.10421593,86272.0,86255.0,0.17822156]
[1769383031930,0.35303991,86320.0,86255.0,0.17822156]
[1769383031931,0.01159044,86278.0,86264.0,1.03584915]
[1769383032140,0.01159124,86272.0,86255.0,0.41691207]
[1769383032389,0.01159057,86277.0,86255.0,0.41691207]
[1769383032588,0.01159084,86275.0,86258.0,0.23869051]
[1769383032768,0.06954555,86275.0,86259.0,0.23869051]
[1769383033010,0.01159138,86271.0,86259.0,0.23869051]
[1769383033220,0.01159205,86266.0,86255.0,0.17822156]
[1769383033451,0.8929506,86266.0,86255.0,0.17822156]
[1769383034700,0.23482733,86267.0,86255.0,0.17822156]
[1769383034885,0.8929506,86266.0,86255.0,0.17822156]
[1769383035127,0.01159084,86275.0,86257.0,0.23869051]
[1769383035327,0.01159097,86274.0,86257.0,0.23869051]
[1769383035481,0.90454144,86275.0,86257.0,0.23869051]
[1769383035662,0.01159097,86274.0,86257.0,0.23869051]
[1769383035861,0.01159057,86277.0,86257.0,0.23869051]
[1769383036070,0.01159044,86278.0,86261.0,0.24285053]
[1769383036268,0.01159017,86280.0,86262.0,0.24285053]
[1769383036269,0.8929506,86280.0,86262.0,0.24285053]
[1769383036469,0.90454077,86280.0,86262.0,0.24285053]
[1769383036766,0.90454104,86278.0,86262.0,0.24285053]
[1769383037115,0.8929506,86278.0,86262.0,0.24285053]
[1769383037992,0.8929506,86278.0,86262.0,0.23629463]
[1769383038613,0.90454104,86278.0,86262.0,0.23629463]
[1769383039021,0.01159057,86277.0,86262.0,0.2341268]
[1769383039645,0.0115907,86276.0,86262.0,0.2341268]
[1769383039925,0.8929506,86275.0,86262.0,0.2341268]
[1769383040439,0.8929506,86278.0,86262.0,0.2341268]
[1769383040636,0.01159097,86274.0,86262.0,0.2341268]
[1769383040823,0.8929506,86276.0,86262.0,0.2341268]
[1769383041019,0.9045413,86276.0,86262.0,0.2341268]
[1769383041243,0.01159084,86275.0,86262.0,0.2341268]
[1769383041495,0.01159097,86274.0,86262.0,0.2341268]
[1769383041689,0.01159084,86275.0,86255.0,0.42107209]
[1769383041690,0.95090813,86271.0,86255.0,0.42107209]
[1769383041915,0.8929506,86270.0,86255.0,0.42107209]
[1769383042767,0.8929506,86270.0,86255.0,0.43266562]
[1769383042975,0.8929506,86270.0,86255.0,0.42107209]
[1769383046801,0.22909223,86271.0,86256.0,1.08937101]
[1769383046999,0.22909223,86271.0,86256.0,1.32062815]
[1769383047269,0.90454211,86270.0,86255.0,0.17822156]
[1769383047480,0.8929506,86268.0,86255.0,0.17822156]
[1769383048798,0.8929506,86265.0,86255.0,0.17822156]
[1769383049674,0.22909223,86266.0,86255.0,0.17822156]
[1769383049900,0.8929506,86269.0,86255.0,0.18981509]
[1769383050536,0.8929506,86269.0,86256.0,0.01159339]
[1769383050742,0.8929506,86269.0,86255.0,0.18981509]
[1769383052566,0.8929506,86269.0,86255.0,0.17822156]
[1769383053108,0.8929506,86269.0,86257.0,0.01159326]
[1769383054562,0.22909223,86272.0,86258.0,0.01159312]
[1769383054759,0.18967044,86278.0,86255.0,0.17822156]
[1769383054760,0.01,86258.0,86255.0,0.17822156]
[1769383054959,0.8929506,86263.0,86255.0,0.17822156]
[1769383056044,0.22939204,86265.0,86255.0,0.17822156]
[1769383056260,0.22939204,86265.0,86237.0,0.01159595]
[1769383056261,0.01,86255.0,86237.0,0.01159595]
[1769383056471,0.22939204,86254.0,86238.0,0.1792391]
[1769383056704,0.8929506,86253.0,86238.0,0.17808]
[1769383056911,0.8929506,86253.0,86241.0,0.01159541]
[1769383057114,0.22939204,86262.0,86243.0,0.01159514]
[1769383057313,1.12234264,86260.0,86243.0,0.01159514]
[1769383057528,0.8929506,86259.0,86242.0,1.07144743]
[1769383057746,1.12234264,86259.0,86242.0,1.0830427]
[1769383057967,1.12234264,86259.0,86242.0,1.07144743]
[1769383058170,0.8929506,86259.0,86242.0,1.07144743]
[1769383058369,1.12234264,86258.0,86242.0,1.0830427]
[1769383058778,0.22939204,86267.0,86248.0,0.35220875]
[1769383058982,0.01159164,86269.0,86249.0,0.01159433]
[1769383059188,0.020736,86294.0,86245.0,0.24446566]
[1769383059189,0.01159245,86263.0,86245.0,0.24446566]
[1769383059394,0.8929506,86262.0,86245.0,0.24446566]
[1769383059594,0.24098409,86266.0,86246.0,1.07144743]
[1769383059797,0.01159218,86265.0,86246.0,1.08304217]
[1769383060042,0.01159218,86265.0,86240.0,0.76219936]
[1769383060043,0.8929506,86259.0,86239.0,0.01159568]
[1769383060255,0.22939204,86259.0,86246.0,0.17808]
[1769383060922,0.8929506,86262.0,86246.0,0.17808]
[1769383061146,0.01159366,86254.0,86246.0,0.17808]
[1769383061362,0.01159366,86254.0,86234.0,0.0579817]
[1769383061363,0.057967,86256.0,86226.0,0.24446566]
[1769383061364,0.22939204,86244.0,86226.0,0.24446566]
[1769383061565,1.3375854,86243.0,86226.0,0.24446566]
[1769383061697,1.3375854,86243.0,86228.0,0.01159716]
[1769383062102,1.3375854,86243.0,86224.0,0.24766607]
[1769383062103,0.23604643,86257.0,86238.0,1.07144743]
[1769383062329,0.05796821,86255.0,86239.0,1.31591309]
[1769383062491,1.3375854,86254.0,86236.0,0.01159608]
[1769383062688,1.3375854,86254.0,86238.0,0.01159581]
[1769383062891,1.3375854,86254.0,86237.0,0.01206835]
[1769383063312,1.3375854,86254.0,86238.0,0.01159581]
[1769383063554,1.3375854,86254.0,86237.0,0.01206835]
[1769383063793,1.3375854,86254.0,86238.0,0.01159581]
[1769383064375,1.3375854,86254.0,86237.0,0.01206835]
[1769383064601,1.3375854,86254.0,86238.0,0.01159581]
[1769383065753,1.3375854,86254.0,86238.0,0.01128275]
[1769383066076,0.35233204,86260.0,86237.0,0.01206835]
[1769383066077,0.01159151,86270.0,86247.0,1.07144743]
[1769383066288,1.11978393,86277.0,86254.0,1.08304109]
[1769383066497,0.22939204,86276.0,86259.0,1.08304042]
[1769383066926,0.01159017,86280.0,86261.0,1.07144743]
[1769383067134,1.33774033,86279.0,86261.0,1.3157566]
[1769383067345,1.10834829,86272.0,86261.0,0.17808]
[1769383067557,0.22939204,86275.0,86261.0,0.17808]
[1769383067768,0.01159003,86281.0,86263.0,1.07144743]
[1769383067978,0.01159003,86281.0,86264.0,0.24446566]
[1769383068390,1.33774033,86283.0,86266.0,0.24446566]
[1769383068760,1.33774033,86283.0,86266.0,0.25605771]
[1769383068975,1.33788189,86283.0,86266.0,0.25605771]
[1769383069580,1.34947165,86283.0,86266.0,0.24446566]
[1769383070001,1.10834829,86279.0,86266.0,0.24446566]
[1769383070206,1.10834829,86279.0,86262.0,0.24446566]
[1769383070405,1.10834829,86279.0,86265.0,0.01159218]
[1769383070649,0.04636,86287.0,86261.0,0.18967272]
[1769383070650,0.17808,86294.0,86274.0,1.07144743]
[1769383070841,0.04636,86310.0,86281.0,1.07144743]
[1769383070842,0.01158761,86299.0,86281.0,1.07144743]
[1769383071140,0.36391952,86300.0,86282.0,0.24446566]
[1769383071314,1.46267938,86300.0,86282.0,0.25605556]
[1769383071514,1.12193469,86301.0,86282.0,0.25605556]
[1769383071718,0.01158748,86300.0,86282.0,1.31591309]
[1769383071922,0.0003165,86308.0,86279.0,0.35233204]
[1769383071923,0.0003165,86308.0,86289.0,0.01158896]
[1769383072281,0.0003165,86308.0,86300.0,0.25605314]
[1769383072596,1.17144075,86319.0,86303.0,0.01158708]
[1769383072810,0.0115848,86320.0,86303.0,1.07144743]
[1769383073008,0.0115852,86317.0,86304.0,0.24446566]
[1769383073211,0.0115852,86317.0,86299.0,0.24446566]
[1769383073328,0.01158533,86316.0,86299.0,0.24446566]
[1769383073537,0.01172681,86317.0,86299.0,0.24446566]
[1769383073837,0.01158547,86315.0,86299.0,0.24446566]
[1769383074038,0.00014161,86317.0,86299.0,0.25605327]
[1769383074240,0.00014161,86317.0,86308.0,0.01158641]
[1769383074468,0.01158359,86329.0,86304.0,0.01158694]
[1769383074469,0.01158399,86326.0,86313.0,1.07144743]
[1769383074671,0.01158372,86328.0,86314.0,0.24446566]
[1769383075073,0.01158372,86328.0,86307.0,0.06951909]
[1769383075074,0.01158211,86340.0,86276.0,0.06377712]
[1769383075482,0.0004,86350.0,86318.0,0.24446566]
[1769383075483,0.01158292,86334.0,86318.0,0.24446566]
[1769383075692,1.11297703,86333.0,86318.0,0.24446566]
[1769383076869,0.01158319,86332.0,86318.0,0.24446566]
[1769383077072,1.11297703,86332.0,86318.0,0.24446566]
[1769383077674,1.12456022,86332.0,86318.0,0.24446566]
[1769383078081,1.11297703,86332.0,86318.0,0.24446566]
[1769383078513,1.12456022,86332.0,86318.0,0.24446566]
[1769383078745,1.12456022,86332.0,86311.0,0.011586]
[1769383078746,0.23165941,86334.0,86299.0,0.01158761]
[1769383078948,0.01,86318.0,86303.0,0.04636]
[1769383079091,0.02158506,86318.0,86303.0,0.04636]
[1769383079655,0.0115852,86317.0,86303.0,0.04636]
[1769383079890,0.01,86318.0,86303.0,0.04636]
[1769383080097,0.02158506,86318.0,86303.0,0.04636]
[1769383080308,0.01,86318.0,86303.0,0.04636]
[1769383080500,0.02158506,86318.0,86303.0,0.04636]
[1769383080639,0.01,86318.0,86305.0,0.24446566]
[1769383080979,0.22939204,86322.0,86308.0,0.01158641]
[1769383081211,0.01158386,86327.0,86307.0,0.24446566]
[1769383081212,0.01158399,86326.0,86307.0,1.32749963]
[1769383081362,0.2409759,86327.0,86307.0,1.32749963]
[1769383081563,0.2409759,86327.0,86307.0,1.31591309]
[1769383081947,0.01158372,86328.0,86303.0,0.04636]
[1769383081948,0.01158211,86340.0,86303.0,0.04636]
[1769383082154,0.01158225,86339.0,86321.0,1.07144743]
[1769383082349,0.01158225,86339.0,86322.0,0.24446566]
[1769383082712,0.01158265,86336.0,86322.0,0.24446566]
[1769383082908,0.01158265,86336.0,86317.0,0.178]
[1769383082909,0.22939204,86330.0,86317.0,0.178]
[1769383083121,0.22939204,86330.0,86295.0,0.23176159]
[1769383083122,0.22939204,86330.0,86304.0,0.30132024]
[1769383083352,0.22939204,86330.0,86259.0,0.05728635]
[1769383083354,0.22939204,86330.0,86205.0,0.23888403]
[1769383083356,0.24921458,86257.0,86205.0,0.23888403]
[1769383083571,1.12572437,86282.0,86205.0,0.23888403]
[1769383083572,1.12572437,86282.0,86215.0,0.92929524]
[1769383083573,0.00603394,86234.0,86215.0,0.92929524]
[1769383083843,0.00603394,86234.0,86205.0,0.0004724]
[1769383083844,0.00603394,86234.0,86219.0,1.31614438]
[1769383084079,0.13644,86244.0,86211.0,0.01159944]
[1769383084080,0.01159541,86241.0,86220.0,1.07726035]
[1769383084292,0.01159541,86241.0,86211.0,0.01159944]
[1769383084293,0.01159554,86240.0,86224.0,1.07726035]
[1769383084720,0.01159527,86242.0,86226.0,1.31614438]
[1769383084936,0.01159554,86240.0,86226.0,1.31614438]
[1769383085170,0.01159581,86238.0,86226.0,1.31614438]
[1769383085585,0.01159595,86237.0,86226.0,1.31614438]
[1769383085791,0.01159581,86238.0,86226.0,1.31614438]
[1769383086584,1.09348017,86240.0,86209.0,0.23888403]
[1769383086911,0.61780362,86250.0,86212.0,1.07726035]
[1769383086912,0.01159743,86226.0,86212.0,1.07726035]
[1769383087141,0.01159716,86228.0,86212.0,1.07726035]
[1769383087352,0.01159743,86226.0,86212.0,1.31614438]
[1769383087601,0.01159716,86228.0,86212.0,1.28133256]
[1769383087795,0.01159675,86231.0,86214.0,1.07726035]
[1769383088000,0.01159702,86229.0,86214.0,1.07726035]
[1769383088222,0.01159689,86230.0,86214.0,1.07726035]
[1769383088223,0.01159675,86231.0,86214.0,1.07726035]
[1769383088464,0.01159702,86229.0,86214.0,1.31614438]
[1769383088670,0.01159729,86227.0,86207.0,1.32774436]
[1769383088914,0.01159702,86229.0,86209.0,1.08886006]
[1769383089135,0.01159702,86229.0,86207.0,0.25048401]
[1769383089136,0.01159716,86228.0,86210.0,1.31614438]
[1769383089344,0.01159729,86227.0,86210.0,1.31614438]
[1769383089542,0.01159702,86229.0,86210.0,1.31614438]
[1769383090165,0.01159716,86228.0,86210.0,1.31614438]
[1769383090360,0.01159729,86227.0,86210.0,1.31614438]
[1769383090775,0.01159716,86228.0,86210.0,1.31614438]
[1769383091040,0.01159662,86232.0,86210.0,0.30848087]
[1769383091231,0.178,86250.0,86210.0,0.30848087]
[1769383091233,0.0115899,86282.0,86262.0,0.23888403]
[1769383091489,0.01158963,86284.0,86277.0,0.16586226]
[1769383091708,0.01,86277.0,86264.0,0.01191418]
[1769383091909,0.01,86277.0,86268.0,0.01159178]
[1769383092113,0.01158882,86290.0,86277.0,0.01]
[1769383092328,0.01158882,86290.0,86269.0,0.00032184]
[1769383092330,0.01158909,86288.0,86269.0,0.00032184]
[1769383092529,0.01158909,86288.0,86269.0,0.0004634]
[1769383092741,1.10506899,86290.0,86269.0,0.0004634]
[1769383092946,1.10506899,86290.0,86269.0,0.01205504]
[1769383093153,0.01158909,86288.0,86269.0,0.0004634]
[1769383093614,1.09348017,86290.0,86269.0,0.0117332]
[1769383093837,0.020736,86314.0,86269.0,0.0117332]
[1769383093838,1.09348017,86300.0,86278.0,0.01159044]
[1769383094072,0.01158654,86307.0,86285.0,0.01158949]
[1769383094292,1.09348017,86309.0,86286.0,0.01158936]
[1769383094494,0.01158641,86308.0,86285.0,0.23888403]
[1769383094648,0.01158654,86307.0,86285.0,0.23888373]
[1769383094887,0.01158667,86306.0,86285.0,0.23888373]
[1769383095084,0.01158681,86305.0,86285.0,0.22729424]
[1769383095243,1.10506725,86303.0,86278.0,0.01159044]
[1769383095461,1.10506765,86300.0,86279.0,0.0115903]
[1769383095666,1.09348017,86299.0,86270.0,0.01159151]
[1769383095890,1.06654706,86293.0,86275.0,0.01159084]
[1769383096125,1.06654706,86293.0,86277.0,0.01159057]
[1769383097249,1.06654706,86293.0,86275.0,0.01159084]
[1769383097492,1.06654706,86293.0,86277.0,0.01159057]
[1769383097850,1.06654706,86293.0,86278.0,0.01159044]
[1769383098037,1.06654706,86293.0,86273.0,0.01159111]
[1769383098230,1.06654706,86293.0,86276.0,0.0115907]
[1769383098443,1.06654706,86293.0,86275.0,0.01259084]
[1769383098648,1.06654706,86293.0,86276.0,0.0115907]
[1769383099053,1.06654706,86293.0,86262.0,0.04636]
[1769383099298,0.2813374,86284.0,86262.0,0.05795259]
[1769383099510,1.06654706,86283.0,86263.0,0.18967245]
[1769383099714,1.06654706,86283.0,86265.0,0.01159218]
[1769383099917,1.06654706,86283.0,86266.0,0.01159205]
[1769383100203,1.06654706,86283.0,86267.0,0.01159191]
[1769383101667,0.0579496,86282.0,86263.0,0.17808]
[1769383101898,1.06654706,86280.0,86263.0,0.17808]
[1769383102102,1.06654706,86279.0,86269.0,0.0117332]
[1769383102290,1.06654706,86279.0,86269.0,0.00014156]
[1769383102962,0.01158896,86289.0,86269.0,0.00014156]
[1769383102963,0.0002922,86323.0,86269.0,0.00014156]
[1769383103181,0.0002922,86323.0,86309.0,0.43980362]
[1769383103382,0.0002922,86323.0,86315.0,0.01158547]
[1769383103614,0.0002922,86323.0,86320.0,0.0115848]
[1769383104068,0.0002922,86323.0,86319.0,0.01158493]
[1769383104336,0.0002922,86323.0,86314.0,0.0115856]
[1769383104338,0.3280974,86350.0,86325.0,0.01158412]
[1769383104555,0.17804,86343.0,86329.0,0.01158359]
[1769383104765,1.06654706,86342.0,86320.0,0.0115848]
[1769383104968,1.06654706,86337.0,86315.0,0.01158547]
[1769383105180,1.06654706,86337.0,86318.0,0.06951013]
[1769383105386,1.06654706,86337.0,86322.0,0.05792244]
[1769383105603,0.17804,86340.0,86327.0,0.01158386]
[1769383105850,0.17804,86340.0,86323.0,0.28400879]
[1769383105851,0.17804,86340.0,86325.0,0.01158412]
[1769383106084,0.17804,86340.0,86326.0,0.01158399]
[1769383106296,0.01158117,86347.0,86325.0,0.01158412]
[1769383106502,0.178,86346.0,86325.0,0.01158412]
[1769383106701,0.18958131,86346.0,86325.0,0.01158412]
[1769383106940,0.01158144,86345.0,86324.0,0.01158426]
[1769383107353,0.43980362,86340.0,86300.0,0.29559627]
[1769383107557,1.06654706,86321.0,86300.0,0.01158748]
[1769383107759,1.06654706,86321.0,86302.0,0.01158721]
[1769383108191,1.06654706,86321.0,86306.0,0.01158667]
[1769383108394,0.178,86328.0,86308.0,0.01158641]
[1769383108603,0.178,86328.0,86306.0,0.01158667]
[1769383108798,0.18958372,86328.0,86308.0,0.00014156]
[1769383109405,0.01158386,86327.0,86308.0,0.00014156]
[1769383109617,0.18958372,86328.0,86308.0,0.01172797]
[1769383109841,0.05791723,86332.0,86308.0,0.01172797]
[1769383109842,0.29291978,86338.0,86313.0,0.01158574]
[1769383110049,0.18958292,86334.0,86312.0,0.01158587]
[1769383110259,0.01158265,86336.0,86315.0,0.23170694]
[1769383110260,0.178,86336.0,86315.0,0.23170694]
[1769383110468,1.06654706,86343.0,86322.0,0.01158453]
[1769383110702,1.06654706,86343.0,86320.0,0.05792347]
[1769383110703,0.01158198,86341.0,86320.0,0.0115848]
[1769383110882,0.01158198,86341.0,86316.0,0.34193523]
[1769383110883,1.07812957,86337.0,86316.0,0.28400879]
[1769383111100,0.01158265,86336.0,86311.0,0.06951588]
[1769383111307,1.06654706,86331.0,86312.0,0.01158587]
[1769383111523,1.06654706,86331.0,86308.0,0.01172797]
[1769383111524,0.18349706,86387.0,86308.0,0.01172797]
[1769383111526,0.2813374,86379.0,86332.0,0.28400879]
[1769383111745,1.07257746,86384.0,86364.0,0.01157889]
[1769383111746,0.0060304,86384.0,86364.0,0.01157889]
[1769383111955,0.2813374,86391.0,86369.0,0.01157822]
[1769383112168,0.29291267,86391.0,86370.0,0.01157809]
[1769383112375,1.34788446,86391.0,86369.0,0.01157822]
[1769383112582,1.34788446,86391.0,86371.0,0.01157796]
[1769383112793,0.01157554,86389.0,86369.0,0.01157822]
[1769383112996,1.35945973,86391.0,86369.0,0.01157822]
[1769383112997,0.00087222,86382.0,86370.0,0.01157809]
[1769383113201,0.00087222,86382.0,86364.0,0.001]
[1769383113407,1.14348918,86380.0,86364.0,0.001]
[1769383113611,0.00087222,86382.0,86364.0,0.001]
[1769383113612,1.14348918,86378.0,86364.0,0.001]
[1769383113809,1.14348918,86378.0,86356.0,0.01157997]
[1769383114071,0.01157728,86376.0,86355.0,0.0115801]
[1769383114221,0.01157742,86375.0,86351.0,0.06948375]
[1769383114622,1.14348918,86372.0,86356.0,0.01157997]
[1769383115714,1.14348918,86372.0,86357.0,0.01157983]
[1769383115916,1.14348918,86372.0,86354.0,0.01158023]
[1769383116114,1.14348918,86372.0,86353.0,0.01158037]
[1769383116279,1.14348918,86372.0,86354.0,0.01158023]
[1769383116677,1.14348918,86372.0,86356.0,0.01157997]
[1769383116886,1.14348918,86372.0,86355.0,0.0115801]
[1769383117323,0.01157836,86368.0,86340.0,0.05791033]
[1769383117550,0.01157836,86368.0,86344.0,0.01158158]
[1769383117551,1.14348918,86363.0,86344.0,0.01158158]
[1769383117754,0.17792,86362.0,86345.0,0.01158144]
[1769383117966,0.17792,86362.0,86345.0,0.25199313]
[1769383118095,0.01157822,86369.0,86348.0,0.01158104]
[1769383118305,0.05788831,86374.0,86345.0,0.25199313]
[1769383118306,0.01157675,86380.0,86356.0,0.01157997]
[1769383118506,0.0124487,86382.0,86357.0,0.01157983]
[1769383118507,0.00087222,86382.0,86357.0,0.01157983]
[1769383118735,0.17792,86374.0,86357.0,0.01157983]
[1769383118908,1.32140918,86373.0,86357.0,0.01157983]
[1769383119109,1.32140918,86373.0,86355.0,0.0115801]
[1769383119349,1.14348918,86373.0,86355.0,0.0115801]
[1769383119525,0.17792,86372.0,86355.0,0.0115801]
[1769383119709,0.17792,86372.0,86356.0,0.01157997]
[1769383119912,0.17792,86372.0,86355.0,0.0115801]
[1769383121716,0.17792,86372.0,86353.0,0.01158037]
[1769383121853,0.17792,86372.0,86354.0,0.01158023]
[1769383122991,0.17792,86372.0,86355.0,0.0115801]
[1769383123186,0.17792,86372.0,86354.0,0.01158023]